Cogmind - Beta 16 @@@ ROGUE MODE // 2025.11.21 @ 10:36:37 Player: ktur Result: Destroyed self with Mini Grenade Launcher Performance ------------- Evolutions (0) 0 Regions Visited (2) 400 Robots Destroyed (22) 110 Value Destroyed (514) 514 Prototype IDs (2) 40 Alien Tech Used (0) 0 Bonus (0) 0 TOTAL SCORE: 1064 Bonus ------- None Cogmind --------- Core Integrity 0/250 Matter 269/300 Energy 100/100 System Corruption 2% Temperature Cool (0) Movement Treading (320) Ox2 Location -10/Subcaves Parts ------- > --- POWER (1) -------- (None) > --- PROPULSION (2) --- Light Treads > --- UTILITY (2) ------ High-capacity Storage Unit Targeting Computer > --- WEAPON (2) ------- Heavy Assault Rifle Mini Grenade Launcher > --- INVENTORY (20) --- Compact Wheel Subdweller Monowheel Large Storage Unit Huge Storage Unit High-capacity Matter Pod (200) Seismic Detector ECM Suite Scrap Shield Heavy Assault Rifle Heavy Assault Rifle Subdweller Machine Gun Mini Grenade Launcher Mini Grenade Launcher Plasma Cutter Hammer Peak State ------------ > --- POWER ------------ Ion Engine > --- PROPULSION ------- Light Treads Light Treads > --- UTILITY ---------- High-capacity Storage Unit Targeting Computer > --- WEAPON ----------- Subdweller Laser Subdweller Machine Gun > --- INVENTORY -------- Light Ion Engine Light Treads Light Treads Compact Wheel Large Storage Unit Huge Storage Unit High-capacity Matter Pod Seismic Detector ECM Suite Scrap Shield Subdweller Laser Heavy Assault Rifle Heavy Assault Rifle Heavy Assault Rifle Mini Grenade Launcher Mini Grenade Launcher Mini Grenade Launcher Plasma Cutter Hammer [Rating: 12] Favorites ----------- Power Ion Engine Engine Ion Engine Propulsion Light Treads Treads Light Treads Wheel Compact Wheel Utility Targeting Computer Device Seismic Detector Storage High-capacity Storage Unit Processor Targeting Computer Weapon Heavy Assault Rifle Energy Gun Subdweller Laser Ballistic Gun Heavy Assault Rifle Launcher Mini Grenade Launcher Impact Weapon Hammer Build | -11 -10 -10 ------- Run | Yrd Mat Sub Slots Evolved . | . . . Power . | . . . Propulsion . | . . . Utility . | . . . Weapon . | . . . Parts Attached 25 | 6 6 13 Power 2 | . 1 1 Engine 2 | . 1 1 Core . | . . . Reactor . | . . . Propulsion 6 | 2 . 4 Treads 4 | 2 . 2 Leg . | . . . Wheel 2 | . . 2 Hover . | . . . Flight . | . . . Utility 5 | 2 3 . Device 1 | 1 . . Storage 3 | 1 2 . Processor 1 | . 1 . Hackware . | . . . Protection . | . . . Artifact . | . . . Weapon 12 | 2 2 8 Energy Gun 5 | 1 . 4 Energy Cannon . | . . . Ballistic Gun 5 | 1 2 2 Ballistic Cannon . | . . . Launcher 1 | . . 1 Special Weapon . | . . . Impact Weapon 1 | . . 1 Slashing Weapon . | . . . Piercing Weapon . | . . . Special Melee Weapon . | . . . Unidentified Prototypes . | . . . Parts Lost 8 | . . 8 Power 2 | . . 2 Propulsion 3 | . . 3 Utility . | . . . Weapon 3 | . . 3 Highest Loss Streak 5 | . . 5 To Critical Strikes 1 | . . 1 Average Backups 15 | 3 13 17 Power . | 1 1 . Propulsion 2 | 1 2 2 Utility 4 | . 2 5 Weapon 7 | 1 6 7 Tool/Special . | . . . Unused Backups 17 | . 5 12 Power . | . . . Propulsion 1 | . 1 . Utility 6 | . . 6 Weapon 9 | . 4 5 Tool/Special 1 | . . 1 Average Slot Usage (%) 97 | . 98 96 Engine 12 | . 13 11 Treads 27 | . 27 27 Storage 14 | . 14 14 Processor 13 | . 12 14 Energy Gun 8 | . . 12 Ballistic Gun 17 | . 26 12 Launcher 1 | . . 2 Peak Build Rating 12 | 6 11 12 Average Rating 10 | 4 10 10 On Entrance 5 | . 6 11 Avg Prop Armor Cover (%) . | . . . Naked Turns . | . . . Heaviest Build 53 | 9 51 53 Greatest Support 40 | 40 40 40 Greatest Overweight (x) 1 | . 1 1 Average Overweight (x) . | . . 1 Largest Inventory Capacity 20 | 8 20 20 Average Capacity 18 | 6 15 20 Most Carried 20 | 6 18 20 Average Carried 16 | 4 13 18 Final Capacity 20 | 8 20 20 Final Carried 18 | 6 18 16 Class Distribution -------------------- 100% | Mutant Dominant Class ---------------- Mutant | -10/Materials Mutant | -10/Subcaves Resources | -11 -10 -10 ----------- Run | Yrd Mat Sub Matter Collected 1010 | 247 240 523 Remotely . | . . . Salvage Created 777 | 11 460 306 Parts 39 | 3 18 18 Haulers Intercepted 2 | . 2 . Recyclers Shooed 2 | . 2 . Parts Field Recycled . | . . . Retrieved Matter . | . . . Parts Self-Destructed 18 | . . 18 Prevented . | . . . Parts Restored . | . . . Kills | -11 -10 -10 ------- Run | Yrd Mat Sub Combat Hostiles Destroyed 17 | . 9 8 Guns 16 | . 9 7 AOE 1 | . . 1 Classes Destroyed 7 | 1 5 1 Worker 1 | . 1 . Tunneler 1 | 1 . . Hauler 2 | . 2 . Recycler 1 | . 1 . Swarmer 6 | . 4 2 Grunt 5 | . 5 . Subdweller 6 | . . 6 Best Kill Streak 4 | 1 4 2 Combat Bots Only 3 | . 3 2 Max Kills in Single Turn 1 | 1 1 1 Gunslinging . | . . . Exploded 1 | . . 1 Melee . | . . . Uniques/NPCs Destroyed . | . . . Combat | -11 -10 -10 -------- Run | Yrd Mat Sub Hostile Shots Fired 105 | . 40 65 Missed 22 | . 10 12 Hits 83 | . 30 53 Projectile 83 | . 30 53 Critical Strikes 1 | . . 1 Damage Taken 1365 | . 305 1060 Core 254 | . 58 196 Absorbed by Shields . | . . . Regen/Repaired (Parts) 141 | . 141 . Core Remaining (%) 100 | 100 . . Volleys Fired 75 | 1 29 45 Largest 2 | 2 2 2 Hottest 120 | 60 46 120 Shots Fired 135 | 2 58 75 Gun 132 | 2 58 72 Cannon . | . . . Launcher 3 | . . 3 Special . | . . . Kinetic 85 | 1 58 26 Thermal 47 | 1 . 46 Explosive 3 | . . 3 Electromagnetic . | . . . Robot Hit Streak 21 | 2 8 21 Robot Miss Streak 2 | . 2 2 Penetration Max . | . . . Secondary Targets 1 | . 1 . Max Gunslinging Chain 1 | . 1 . Shots Hit Robots 92 | 2 34 56 Core Hits 34 | 1 18 15 Critical Kills 1 | . . 1 Critical Parts Destroyed 1 | . . 1 Critical Strikes 3 | . . 3 Destroy 3 | . . 3 Melee Attacks 3 | . . 3 Impact 3 | . . 3 Slashing . | . . . Piercing . | . . . Sneak Attacks . | . . . Combat Hostiles . | . . . Follow-up Attacks . | . . . Damage Inflicted 1815 | 24 584 1207 Guns 1625 | 24 549 1052 Cannons . | . . . Explosions 155 | . . 155 Melee . | . . . Ramming 35 | . 35 . Kinetic 898 | 14 549 335 Thermal 727 | 10 . 717 Explosive 155 | . . 155 Electromagnetic . | . . . Impact . | . . . Slashing . | . . . Piercing . | . . . Highest Corruption 2 | . 2 2 Average Corruption 2 | . 2 2 Corruption Purged . | . . . Corruption Blocked . | . . . Effects 28 | . 1 27 Message Errors 8 | . 1 7 Matter Fused 9 | . . 9 Heat Flow Errors 1 | . . 1 Energy Discharges 2 | . . 2 Data Loss (minor) 4 | . . 4 Data Loss (major) 2 | . . 2 Misfires 2 | . . 2 Overload Shots . | . . . Overflow Damage 9 | . . 9 Projectiles . | . . . Explosions 9 | . . 9 Melee . | . . . Knockbacks . | . . . Impact . | . . . Kinetic . | . . . Secondary . | . . . Self-Inflicted Damage 94 | . . 94 Shots 3 | . . 3 Rammed 8 | . 8 . Targets Rammed 9 | . 9 . Kicked . | . . . Crushed 1 | . 1 . Highest Temperature 132 | . 10 132 Average Temperature 19 | . 4 23 Received Heat Transfer 336 | . 78 258 Siege Activations . | . . . Martial Activations . | . . . Shielding Activations . | . . . Robots Disrupted . | . . . Combat Hostiles . | . . . Robots Corrupted . | . . . Combat Hostiles . | . . . Parts Fried . | . . . Impact Corruptions . | . . . Robots Melted . | . . . Combat Hostiles . | . . . Parts Melted 1 | . . 1 Heat Transferred 900 | 25 . 875 Parts Sabotaged . | . . . Parts Stolen . | . . . Parts Stripped . | . . . Power Chain Reactions . | . . . Alert | -11 -10 -10 ------- Run | Yrd Mat Sub Maximum Alert Level . | . . . Low Security (%) 100 | 100 100 . Level 1 . | . . . Level 2 . | . . . Level 3 . | . . . Level 4 . | . . . Level 5 . | . . . High Security . | . . . Max Security . | . . . Peak Influence 167 | 5 167 . Initial . | . . . Average 49 | . 53 . Influence Increases 515 | 5 320 190 Destroy 0b10 Robot/C 220 | . 180 40 Destroy 0b10 Robot/NC 25 | 5 20 . Destroy Leader 54 | . 54 . Successful Hack 36 | . 36 . Lose Combat Pursuer 180 | . 30 150 Influence Decreases 489 | 5 313 171 Entered New Map 4 | . . 4 Time Decay 430 | 5 313 112 Lost Part 55 | . . 55 Squads Dispatched 1 | . 1 . Investigation 1 | . 1 . Extermination . | . . . Reinforcement . | . . . Assault . | . . . Garrison . | . . . Intercept . | . . . Searches Triggered . | . . . Construction Impeded . | . . . Haulers Reinforced . | . . . Active Scanning Responses . | . . . Cargo Convoy Interrupts . | . . . Stealth | -11 -10 -10 --------- Run | Yrd Mat Sub Distress Signals . | . . . Communications Jammed . | . . . Distress Signals . | . . . Times Spotted 31 | . 15 16 Peak Tracking Total 3 | . 3 3 Tactical Retreats 7 | . 1 6 Traps | -11 -10 -10 ------- Run | Yrd Mat Sub Traps Triggered 2 | . 2 . Indirectly . | . . . Trap Hack Attempts . | . . . Triggered . | . . . Disarmed . | . . . Reprogrammed . | . . . Reused . | . . . Traps Extracted . | . . . Installed . | . . . Triggered . | . . . Machines | -11 -10 -10 ---------- Run | Yrd Mat Sub Machines Disabled . | . . . Max in Single Turn . | . . . Machines Repaired . | . . . Machines Dismantled . | . . . Machines Sabotaged . | . . . Overloaded Fab Kills . | . . . Hacking | -11 -10 -10 --------- Run | Yrd Mat Sub Machines Accessed 6 | . 6 . Terminals 5 | . 5 . Fabricators . | . . . Repair Stations 1 | . 1 . Recycling Units . | . . . Scanalyzers . | . . . Garrison Access . | . . . Total Hacks 20 | . 20 . Successful 11 | . 11 . Failed 9 | . 9 . Catastrophic 3 | . 3 . Database Lockouts . | . . . Manual 8 | . 8 . Terminals 15 | . 15 . Fabricators . | . . . Repair Stations 5 | . 5 . Recycling Units . | . . . Scanalyzers . | . . . Garrison Access . | . . . Terminal Hacks 6 | . 6 . Record 1 | . 1 . Part Schematic 2 | . 2 . Robot Analysis 1 | . 1 . Prototype ID Bank 1 | . 1 . Level Access Points 1 | . 1 . Fabricator Hacks . | . . . Repair Station Hacks 5 | . 5 . Scan Component 3 | . 3 . Repair 2 | . 2 . Recycling Unit Hacks . | . . . Scanalyzer . | . . . Garrison Access Hacks . | . . . Unauthorized Hacks . | . . . Terminals . | . . . Fabricators . | . . . Repair Stations . | . . . Recycling Units . | . . . Scanalyzers . | . . . Garrison Access . | . . . Data Cores Recovered . | . . . Used . | . . . Hacking Detections 5 | . 5 . Full Trace Events 1 | . 1 . Feedback Events . | . . . Feedback Blocked . | . . . Robot Schematics Acquired . | . . . Robots Built . | . . . Authchips . | . . . Time . | . . . Total Robot Build Rating . | . . . Part Schematics Acquired 2 | . 2 . Parts Built . | . . . Authchips . | . . . Time . | . . . Total Part Build Rating . | . . . Part Studies Acquired . | . . . Parts Repaired 2 | . 2 . Time 58 | . 58 . Parts Recycled . | . . . Recycled Matter . | . . . Retrieved Matter . | . . . Retrieved Components . | . . . Parts Scanalyzed . | . . . Part Schematics Acquired . | . . . Parts Damaged . | . . . Bothacking | -11 -10 -10 ------------ Run | Yrd Mat Sub Used RIF Installer . | . . . Robots Hacked . | . . . Non-combat . | . . . Combat . | . . . Robot Hacks Applied . | . . . Relay Couplers Released . | . . . Fabnet Peak Effective % . | . . . Robots Rewired . | . . . Allies Hacked . | . . . Hacks Repelled . | . . . Allies | -11 -10 -10 -------- Run | Yrd Mat Sub Total Allies . | . . . Largest Group . | . . . Highest-Rated Group . | . . . Highest-Rated Ally . | . . . Total Orders . | . . . Ally Attacks . | . . . Total Damage . | . . . Kills . | . . . Allies Corrupted . | . . . Allies Melted . | . . . Intel | -11 -10 -10 ------- Run | Yrd Mat Sub Active Infowar (turns) 178 | 36 142 . Seismic 178 | 36 142 . Robot Analysis Total 1 | . 1 . Derelict Logs Recovered 1 | . . 1 Drone Launches . | . . . Drone Recoveries . | . . . Exploration | -11 -10 -10 ------------- Run | Yrd Mat Sub Turns Passed 3463 | 95 1204 2164 Spaces Moved 1432 | 51 551 830 Core 5 | 5 . . Treads 1421 | 46 551 824 Legs . | . . . Wheels 6 | . . 6 Hover . | . . . Flight . | . . . Fastest Speed 50 | 50 160 117 Average Speed 214 | 149 182 239 Slowest Speed 240 | 160 240 240 Overloaded Moves . | . . . Propulsion Burnouts . | . . . Robots Hopped . | . . . Potential Cave-ins . | . . . Cave-ins Triggered . | . . . Exploration Rate (%) 46 | 3 89 46 Regions Visited 2 Branch Regions 1 Pre-discovered Areas . | . . . Known Exits Taken . | . . . Unknown Exits Taken 2 | 1 1 . Scrap Searched 2 | . . 2 Spaces Dug 11 | . . 11 Terrain Destroyed 22 | . . 22 Melee . | . . . Projectile . | . . . AOE 22 | . . 22 Terrain Rammed . | . . . Walls Destroyed . | . . . Machines Disabled . | . . . Actions | -11 -10 -10 --------- Run | Yrd Mat Sub Total 1684 | 67 691 926 Wait 85 | 1 65 19 Move 1430 | 50 550 830 Hop . | . . . Pick Up 31 | 9 18 4 Fast Attach 11 | 3 5 3 Attach 10 | 3 1 6 Detach 2 | . 1 1 Swap 14 | . 3 11 Drop 14 | . 10 4 Fire 75 | 1 29 45 Melee 3 | . . 3 Ram . | . . . Kick . | . . . Crush 9 | . 9 . Escape Stasis . | . . . Rewire . | . . . Trap . | . . . Miscellaneous . | . . . Route ------- -11/Scrapyard -10/Materials (discovered 5 exits: *Mat x3 / [*Min] / [*Sub]) -10/Subcaves (discovered 3 exits: [*Mat] / [*Rec] / [*Scr]) History --------- Turn | Location | Event 5 | -11/Scrapyard | Discovered new exit (range 15) 96 | -11/Scrapyard | Entered Materials 249 | -10/Materials | Identified exit to Materials 313 | -10/Materials | Build established: Mutant 1040 | -10/Materials | Discovered new exit (range 8) 1240 | -10/Materials | Repaired Hvy. Assault Rifle 1267 | -10/Materials | Repaired Lgt. Treads 1276 | -10/Materials | Discovered new exit (range 10) 1300 | -10/Materials | Entered Subcaves 1301 | -10/Subcaves | Approached by a straggling Scientist 1527 | -10/Subcaves | Scientist uncovered a shortcut to Scraptown 2430 | -10/Subcaves | Shifting Twisted Machinery released Shrapnel Trap 2442 | -10/Subcaves | Shifting Twisted Machinery released Sub. Laser 2555 | -10/Subcaves | Discovered new exit (range 9) 2558 | -10/Subcaves | Discovered new exit (range 16) 2560 | -10/Subcaves | Learned 8 Materials zone layouts 2761 | -10/Subcaves | Core integrity fell below 50% 3031 | -10/Subcaves | Core integrity fell below 20% 3065 | -10/Subcaves | Lost 5 parts (1p1n3w) 3464 | -10/Subcaves | Destroyed self with Mini Grenade Launcher Last Messages --------------- 03024_ Critical hit (Destroy). 03024_ Sub. Laser destroyed. 03028_ DX-OO3(R) destroyed. 03034_ Sub. Laser destroyed. 03035_ The unstable cave ceiling collapses. 03038_ RZO=I537|FMNU7%W 03411_ QDMT2O 6EXK=ZHH/#T%C3OKT2/ 03427_ System corrupted: FCS attempts to trigger Hvy. Assault Rifle. 03427_ System corrupted: Hvy. Assault Rifle misfires. 03464_ System corrupted: FCS attempts to trigger Mni. Grenade Launcher. 03464_ System corrupted: Mni. Grenade Launcher misfires. 03464_ Lgt. Treads destroyed. 03464_ Destroyed Lgt. Treads. Map ----- +----------------------------------------------------+ | ?## #???????????????????????????????????????????? | | ??# >#???????????????????????????????????????????? | | ??# #???????????????????????????????????????????? | | ?## ##???????????????????????????????????????????? | | ## #????????????????????????????????????????????? | | # #????????????????????????????????????????????? | | ##????????????????????????????????????????????? | | #???####??????????????????????????????????????? | | #??## #??????####????????????????????????????? | | ##??# ####???# #????????????????????????????? | | ##??## ##??# ##???????????????????????????? | | ###### #?## ##??????????????????????????? | | # # ## ### ##?????????????????????????# | | # ##?????????????????????## # | | ### ##???####?????????????#" " | | ??# ### #???# #?????????#####" | | ??###?### ####### #?????????#""##" | | ????????# ## ###??# #????????##"""## | | ????????# ### ##????# ##???###?#""" ##? | | #???????####### ##?????## #??##"### #?? | | ####??????#### #?????### #??# """" ##? | | ##??#### #????## #??# """" ## | | #### ###???## ##??### # | | # # ##??### ###???##### # | | ?? ### #### ####?# ## # | | #####?# ## @ ### # | | # ###### ## | | ### | | #?# ## ### | | ### #?# #### #?# | | ?# #### ##?## ## ####?# #### | | ?# ### ##??## #???# #??## | | ## # #??## ##?## #???# | | # #??# ### #??# ## | | # #??# ## # #??# ## ## | | ### ###??# #### #### ##?# ##### ### | | ####?####????# ##??####??## #?####???###?## | | ####????????????#####??????????#####?????????????? | | ?????????????????????????????????????????????????? | | ?????????????????????????????????????????????????? | | ?????????????????????????????????????????????????? | | ?????????????????????????????????????????????????? | | ?????????????????????????????????????????????????? | | ?????????????????????????????????????????????????? | | ?????????????????????????????????????????????????? | | ?????????????????????????????????????????????????? | | ?????????????????????????????????????????????????? | | ?????????????????????????????????????????????????? | | ?????????????????????????????????????????????????? | | ?????????????????????????????????????????????????? | +----------------------------------------------------+ Best States ------------- Heat Dissipation 25 Energy Generation 10 Energy Capacity 250 Matter Stores 300 Matter Capacity 300 Sight Range 16 Terrain Scan Density 10 Evasion (%) 40 Targeting Accuracy 5 Recoil Reduction 2 Item Schematics ----------------- Transport Network Coupler | -10/Materials | Hacked ECM Suite | -10/Materials | Hacked Robot Schematics ------------------ None Fabricated ------------ Nothing Repaired ---------- Hvy. Assault Rifle | 36% | -10/Materials Lgt. Treads | 51% | -10/Materials Studied --------- None Alien Tech Used ----------------- None Achievements -------------- None Challenges ------------ None Game ------ Seed GravitonCoreNanosword Manual? 0 Play Time 00:11:43 Cumulative 830.6 hours Start 2025.11.21 @ 10:24:29 End 2025.11.21 @ 10:36:37 Sessions 1 Manual Loads 0 Difficulty Rogue Special Mode None Game No. 838 Rogue 838 Adventurer 0 Explorer 0 Win Type - Total 40 Types 15/4/11/2/0/0/5/2/1/0 Lore% 96 Gallery% 86 Achievement% 63 Wizard Run 0 Options --------- Layout 0 ASCII 0 Keyboard 0 Movement Numpad Keybinds 0 Fullscreen 1 Font 18/Smallcaps Map View 76x50 Zoom Use 0% Tactical HUD 1 Map Filters NONE Filters NONE Steam 1 RUN: 8d13fe78-d5ae-4402-88c1-61a917446d0e